[Event "13th Chennai Open 2022"]
[Site "Chennai"]
[Date "2022.06.20"]
[Round "2.11"]
[White "Vengatesh Krishnan C"]
[Black "Nguyen, Duc Hoa"]
[Result "0-1"]
[ECO "A35"]
[WhiteElo "1581"]
[BlackElo "2398"]
[Annotator "RC"]
[PlyCount "40"]
[EventDate "2022.06.19"]
[EventType "swiss"]
[EventCountry "IND"]
[SourceTitle "playchess.com"]
[Source "ChessBase"]
[SourceQuality "1"]
[TimeControl "5400+30"]

1. d4 {[%emt 0:00:05]} Nf6 {[%emt 0:00:06]} 2. c4 {[%emt 0:00:09]} g6 {[%emt 0:00:05]} 3. Nc3 {[%emt 0:00:13]} d5 {[%emt 0:00:07]} 4. Nf3 {[%emt 0:00:59]} Bg7 {[%emt 0:00:11]} 5. e3 {[%emt 0:00:53]} O-O {[%emt 0:00:29]} 6. Be2 {[%emt 0:01:05]} c5 {[%emt 0:01:56]} 7. O-O {[%emt 0:02:39]} cxd4 {[%emt 0:03:10]} 8. Nxd4 {[%emt 0:03:22]} Nc6 {[%emt 0:08:57]} 9. cxd5 {[%emt 0:14:58]} Nxd5 {[%emt 0:01:13]} 10. Nxd5 {[%emt 0:02:15]} Qxd5 {[%emt 0:00:08]} 11. Bf3 {[%emt 0:00:52]} Qc5 {[%emt 0:01:04]} 12. Nxc6 {[%emt 0:07:31]} bxc6 {[%emt 0:00:09]} 13. Qa4 {[%emt 0:02:34]} Rb8 {[%emt 0:00:35]} 14. Rb1 {[%emt 0:15:58]} Rd8 {[%emt 0:15:08]} 15. b4 {[%emt 0:13:08]} Qc4 {[%emt 0:03:16]} 16. Bxc6 {[%emt 0:19:51]} Bg4 {[%emt 0:06:19]} 17. Ba3 {[%emt 0:05:44]} Rb6 {[%emt 0:07:48]} 18. Rfc1 {[%emt 0:04:48]} Qa6 {[%emt 0:00:16]} 19. Qxa6 {[%emt 0:01:57]} Rxa6 {[%emt 0:00:05]} 20. Bb2 {[%emt 0:00:40]} Bxb2 {[%emt 0:00:08]} 0-1

[Event "13th Chennai Open 2022"]
[Site "Chennai"]
[Date "2022.06.20"]
[Round "2.12"]
[White "Harsh Suresh"]
[Black "Arjun Sidharth S"]
[Result "1/2-1/2"]
[ECO "A02"]
[WhiteElo "2392"]
[BlackElo "1623"]
[Annotator "TA"]
[PlyCount "103"]
[EventDate "2022.06.19"]
[EventType "swiss"]
[EventCountry "IND"]
[SourceTitle "playchess.com"]
[Source "ChessBase"]
[SourceQuality "1"]
[TimeControl "5400+30"]

{[%evp 14,103,-18,-37,-30,-33,-30,-60,-27,-78,-15,-32,-23,-60,-41,-58,-27,-45,-41,-63,-46,-45,-44,-40,0,0,0,-6,0,-27,-28,-21,-18,-57,-49,-48,-60,-48,-68,-59,0,0,0,0,0,0,0,0,0,0,0,0,0,0,0,0,0,0,0,0,0,0,0,0,0,0,0,-26,0,0,0,0,0,0,0,0,0,0,0,0,0,0,8,8,8,0,0,0,8,0,0,0]} 1. f4 {[%emt 0:00:03]} Nf6 {[%emt 0:01:38]} 2. Nf3 {[%emt 0:00:24]} g6 {[%emt 0:00:45]} 3. b3 {[%emt 0:00:27]} Bg7 {[%emt 0:00:22]} 4. Bb2 {[%emt 0:00:01]} d6 {[%emt 0:01:07]} 5. e3 {[%emt 0:00:16]} O-O {[%emt 0:00:56]} 6. Be2 {[%emt 0:00:22]} c5 $1 {[%emt 0:00:58] The main line 6...c5 scores better than 6...Nc6.} 7. O-O {[%emt 0:00:20]} Nc6 {[%emt 0:04:06]} 8. h3 {[%emt 0:00:55]} e5 {[%emt 0:09:37] [#] A02: Bird's Opening.} 9. fxe5 $146 {[%emt 0:22:14]} ({Predecessor:} 9. g4 Ne4 10. Qe1 Ng3 11. Qxg3 exf4 12. exf4 Bxb2 13. Nc3 Bxa1 14. Rxa1 d5 15. f5 Re8 16. fxg6 hxg6 {0-1 (24) Hansen,C-Light,B Randers 1990}) 9... Ne4 {[%emt 0:00:47]} 10. Qe1 {[%emt 0:05:24] Against Ng3} dxe5 {[%emt 0:03:54] Black is slightly better.} 11. a4 {[%emt 0:25:30]} (11. Na3 $11) 11... Ng5 {[%emt 0:09:19]} (11... Nd6 $17) 12. Nxg5 {[%emt 0:03:56]} Qxg5 {[%emt 0:00:10]} 13. Kh2 {[%emt 0:00:06]} Nb4 {[%emt 0:08:32]} 14. Na3 {[%emt 0:01:53]} e4 {[%emt 0:01:01]} 15. Bxg7 {[%emt 0:03:40]} Kxg7 {[%emt 0:00:02]} 16. Bc4 {[%emt 0:08:05]} Qe5+ {[%emt 0:03:49]} 17. Qg3 {[%emt 0:01:10]} Qxg3+ {[%emt 0:00:52]} 18. Kxg3 {[%emt 0:00:02]} a6 {[%emt 0:05:41][%cal Ba7a6,Ba6a5][%mdl 32]} 19. c3 {[%emt 0:08:21]} Nc6 {[%emt 0:03:22]} 20. Bd5 {[%emt 0:00:03]} f5 {[%emt 0:01:18]} 21. Nc4 {[%emt 0:05:37]} Ne7 {[%emt 0:09:26]} 22. Nb6 {[%emt 0:00:08]} Rb8 $1 {[%emt 0:00:20] Hoping for ...Rf6.} 23. c4 {[%emt 0:01:38]} a5 $1 {[%emt 0:06:52]} 24. d3 {[%emt 0:04:08]} exd3 {[%emt 0:02:57]} ({Reject} 24... Nxd5 25. cxd5 exd3 26. Rfd1 $11) 25. Rad1 {[%emt 0:00:59]} Rf6 {[%emt 0:04:41]} 26. Nxc8 {[%emt 0:00:16]} Rxc8 {[%emt 0:00:44]} (26... Nxd5 $15 27. cxd5 Rxc8) 27. Rxd3 $11 {[%emt 0:00:40]} Rd8 {[%emt 0:00:29]} 28. Rfd1 {[%emt 0:00:20]} Rfd6 {[%emt 0:00:35]} 29. e4 {[%emt 0:02:04]} (29. h4 {keeps more tension.} Nc6 30. e4 R8d7 31. exf5 gxf5 32. Re3) 29... fxe4 {[%emt 0:00:10]} 30. Bxe4 {[%emt 0:00:13]} Rxd3+ {[%emt 0:00:12]} 31. Rxd3 {[%emt 0:00:43]} Rxd3+ {[%emt 0:00:20]} 32. Bxd3 {[%emt 0:00:02][%mdl 4096] Endgame KB-KN} b6 {[%emt 0:01:32]} 33. Be4 {[%emt 0:01:34]} Kf6 {[%emt 0:00:19] [#] ...Ke5 is the strong threat.} 34. Kf4 {[%emt 0:00:13]} Nc8 {[%emt 0:00:44]} 35. h4 {[%emt 0:00:45]} h6 {[%emt 0:00:21]} 36. Bd3 {[%emt 0:01:14]} Nd6 {[%emt 0:00:20]} 37. Bc2 {[%emt 0:00:31]} Nf7 {[%emt 0:05:59]} 38. Bb1 {[%emt 0:01:27]} Nd6 {[%emt 0:03:56]} 39. Bd3 {[%emt 0:00:15]} g5+ {[%emt 0:01:02]} 40. Kg4 {[%emt 0:00:33]} Nf7 {[%emt 0:03:33] [#] And now ...Ne5+ would win.} (40... gxh4 $5 {[%cal Rf6e5]} 41. Kf4 Nf7 $15) 41. Be4 {[%emt 0:00:59] The position is equal.} Nd6 {[%emt 0:00:55]} 42. Bc2 {[%emt 0:00:34]} Nf7 {[%emt 0:01:07]} 43. Be4 {[%emt 0:00:18]} Nd6 {[%emt 0:00:30]} 44. Bc2 {[%emt 0:00:15]} Nf7 {[%emt 0:00:34]} 45. Kh5 {[%emt 0:01:22]} gxh4 {[%emt 0:01:07]} 46. Kxh4 {[%emt 0:00:03]} Ng5 {[%emt 0:00:28]} 47. Kh5 {[%emt 0:00:15]} Kg7 {[%emt 0:00:13]} 48. Bf5 {[%emt 0:00:09]} Nf7 {[%emt 0:00:18]} 49. Be4 {[%emt 0:00:18]} Ng5 {[%emt 0:00:47]} 50. Bf5 {[%emt 0:01:35]} Nf7 {[%emt 0:00:17]} 51. Be4 {[%emt 0:00:17]} Ng5 {[%emt 0:00:07]} 52. Bf5 {[%emt 0:00:12] Weighted Error Value: White=0.08 (flawless) /Black=0.07 (flawless)} 1/2-1/2

[Event "13th Chennai Open 2022"]
[Site "Chennai"]
[Date "2022.06.20"]
[Round "2.13"]
[White "Ashvath Mittal"]
[Black "Nguyen, Van Huy"]
[Result "*"]
[ECO "B12"]
[WhiteElo "1419"]
[BlackElo "2405"]
[Annotator "TA"]
[PlyCount "42"]
[EventDate "2022.06.19"]
[EventType "swiss"]
[EventCountry "IND"]
[SourceTitle "playchess.com"]
[Source "ChessBase"]
[SourceQuality "1"]
[TimeControl "5400+30"]

{[%evp 11,42,27,35,0,42,23,30,27,39,39,55,54,91,31,93,81,95,7,10,14,33,45,46,19,13,13,14,11,16,19,2,19,22]} 1. e4 {[%emt 0:00:03]} c6 {[%emt 0:00:12]} 2. d4 {[%emt 0:00:05]} d5 {[%emt 0:00:09]} 3. e5 {[%emt 0:00:04]} Bf5 {[%emt 0:00:19]} 4. Nf3 {[%emt 0:00:08]} e6 {[%emt 0:00:11]} 5. Be2 {[%emt 0:00:05]} Nd7 {[%emt 0:00:37]} 6. O-O {[%emt 0:00:07]} Ne7 {[%emt 0:00:06]} 7. h3 {[%emt 0:00:03] B12: Caro-Kann: Advance Variation.} Nc8 {[%emt 0:01:55]} 8. b3 {[%emt 0:00:22]} Be7 {[%emt 0:03:48]} 9. c4 {[%emt 0:00:05][%cal Bc2c4,Bc4c5][%mdl 32] White has an edge.} O-O {[%emt 0:02:58]} 10. Nc3 {[%emt 0:00:04] [#]} a5 $146 {[%emt 0:03:54]} ({Predecessor:} 10... a6 11. Bb2 b5 12. cxd5 cxd5 13. Bd3 Bxd3 14. Qxd3 Na7 15. Rfe1 Nc6 16. Nh2 Qb6 {0-1 (47) Torella,R (1984)-Mahia,G (2364) Buenos Aires 2011}) 11. Bd3 {[%emt 0:04:01]} Bg6 {[%emt 0:03:47]} 12. a3 {[%emt 0:08:03]} ({White should play} 12. Bxg6 $16 hxg6 13. Qd3) 12... Qb6 {[%emt 0:10:12]} (12... Bxd3 $14 13. Qxd3 Re8) 13. c5 {[%emt 0:01:29]} Qa7 {[%emt 0:00:46] [#]} 14. Be3 {[%emt 0:05:52] White is more active.} (14. Bxg6 $1 $16 hxg6 15. Bd2) 14... Bxd3 $1 $11 {[%emt 0:07:24]} 15. Qxd3 {[%emt 0:00:06]} Qa6 {[%emt 0:00:07]} (15... b6 {is more complex.} 16. cxb6 Qxb6 17. Na4 Qb5) 16. Qxa6 {[%emt 0:00:37]} Rxa6 {[%emt 0:00:29]} 17. Nd2 {[%emt 0:02:51]} f6 {[%emt 0:02:18] The position is equal.} 18. f4 {[%emt 0:00:10]} fxe5 {[%emt 0:00:59]} 19. fxe5 {[%emt 0:01:09]} b6 {[%emt 0:01:18][%cal Rb6c5]} 20. b4 {[%emt 0:00:32]} axb4 {[%emt 0:04:37]} 21. axb4 {[%emt 0:00:13]} Rxf1+ {[%emt 0:00:00] Weighted Error Value: White=0.23 (precise) /Black=0.13 (very precise)} *

[Event "13th Chennai Open 2022"]
[Site "Chennai"]
[Date "2022.06.20"]
[Round "2.14"]
[White "Hari Madhavan N B"]
[Black "Hari Ganesh T"]
[Result "1-0"]
[ECO "E05"]
[WhiteElo "2374"]
[BlackElo "1609"]
[Annotator "TA"]
[PlyCount "99"]
[EventDate "2022.06.19"]
[EventType "swiss"]
[EventCountry "IND"]
[SourceTitle "playchess.com"]
[Source "ChessBase"]
[SourceQuality "1"]
[TimeControl "5400+30"]

{[%evp 13,99,8,2,1,17,10,15,2,9,0,9,4,24,16,16,22,28,29,22,22,22,24,24,24,20,26,26,8,11,18,39,22,27,30,29,14,20,12,9,11,156,156,165,160,165,165,172,165,165,165,164,166,167,168,167,151,151,151,220,220,224,231,165,166,246,247,250,170,169,161,161,161,80,80,89,89,29966,29964,29965,29965,29973,29974,29976,29977,29977,29978,29975,29958]} 1. d4 {[%emt 0:00:04]} Nf6 {[%emt 0:00:15]} 2. Nf3 {[%emt 0:00:07]} e6 {[%emt 0:00:10]} 3. c4 {[%emt 0:00:06]} d5 {[%emt 0:00:22]} 4. g3 {[%emt 0:00:08]} Be7 {[%emt 0:01:14]} 5. Bg2 {[%emt 0:00:07]} O-O {[%emt 0:00:57]} 6. O-O {[%emt 0:00:06]} dxc4 {[%emt 0:00:19]} 7. Qc2 {[%emt 0:00:11]} b5 {[%emt 0:00:14]} 8. a4 {[%emt 0:00:10] E05: Open Catalan: 5 Nf3 Be7.} b4 {[%emt 0:00:06]} 9. Nbd2 {[%emt 0:00:05]} Bb7 {[%emt 0:00:25]} 10. Nxc4 {[%emt 0:00:08] The position is equal.} Be4 {[%emt 0:02:32] 10...c5 is the fancy move.} 11. Qd1 {[%emt 0:00:41]} c5 {[%emt 0:01:58]} 12. dxc5 {[%emt 0:07:58]} Bxc5 {[%emt 0:00:18]} 13. Qxd8 {[%emt 0:06:10]} Rxd8 {[%emt 0:00:03]} 14. Bg5 {[%emt 0:00:10] [#]} h6 $146 {[%emt 0:00:20]} ({Predecessor:} 14... Nbd7 15. Nfd2 Bxg2 16. Kxg2 Be7 17. Na5 Rdc8 18. Rfc1 h6 19. Be3 Rxc1 20. Rxc1 Nd5 {0-1 (45) Grabarczyk,M (2466)-Warakomski,T (2498) Warsaw 2014}) 15. Bxf6 {[%emt 0:00:10]} gxf6 {[%emt 0:00:03]} 16. Nfd2 {[%emt 0:01:40]} Bxg2 {[%emt 0:00:14]} 17. Kxg2 {[%emt 0:00:06]} Nc6 {[%emt 0:10:59]} 18. Nb3 {[%emt 0:00:24] Pair of Knights!} Be7 {[%emt 0:00:33][%cal Bc5e7,Be7g5,Bg5f6][%mdl 32]} 19. Rfd1 {[%emt 0:00:19]} f5 {[%emt 0:00:45]} 20. Rxd8+ {[%emt 0:10:25]} Rxd8 {[%emt 0:00:07]} 21. Rc1 {[%emt 0:00:13]} Bg5 {[%emt 0:21:35]} 22. Rc2 {[%emt 0:01:11]} Nd4 {[%emt 0:04:48]} 23. Nxd4 {[%emt 0:00:23]} Rxd4 $11 {[%emt 0:00:03][%mdl 4096] Endgame KRB-KRN} 24. b3 {[%emt 0:03:48]} Rd1 {[%emt 0:07:34]} 25. Ne5 {[%emt 0:01:20]} Bf6 {[%emt 0:05:26]} 26. Nc6 {[%emt 0:00:17]} Bc3 {[%emt 0:01:23]} (26... Rb1 $11) 27. Nxa7 $16 {[%emt 0:00:17]} Rb1 {[%emt 0:00:03]} 28. Nb5 {[%emt 0:00:09] Black must now prevent Ra2.} Rxb3 {[%emt 0:00:04]} 29. a5 {[%emt 0:00:06]} Rb1 {[%emt 0:00:21]} 30. Nxc3 {[%emt 0:09:18]} bxc3 {[%emt 0:00:04]} 31. Rxc3 $18 {[%emt 0:00:06] Threatens to win with Ra3. KR-KR} Ra1 {[%emt 0:01:23] Against Ra3} 32. Rc8+ {[%emt 0:02:09]} Kg7 {[%emt 0:00:07]} 33. Ra8 {[%emt 0:00:02]} Ra2 {[%emt 0:00:14]} 34. Kf3 {[%emt 0:00:06]} Ra3+ {[%emt 0:04:34]} 35. e3 {[%emt 0:00:30]} Ra2 {[%emt 0:05:06]} (35... Kf6 $16 36. a6 h5) 36. a6 {[%emt 0:00:28][%cal Ba5a6,Ba6a7][%mdl 32]} e5 {[%emt 0:00:21]} 37. h3 {[%emt 0:01:45]} e4+ {[%emt 0:00:57] [#]} 38. Kg2 $1 {[%emt 0:00:06]} h5 {[%emt 0:00:07]} 39. a7 {[%emt 0:01:26]} Ra1 {[%emt 0:00:13]} 40. g4 {[%emt 0:00:32]} fxg4 {[%emt 0:21:33]} 41. hxg4 {[%emt 0:00:10]} hxg4 {[%emt 0:00:01]} 42. Kg3 {[%emt 0:00:11]} f5 {[%emt 0:00:07]} 43. Kf4 {[%emt 0:58:12]} Ra5 {[%emt 0:00:06]} 44. Kg5 {[%emt 0:00:00]} Ra2 $2 {[%emt 0:00:59][%mdl 8192] [#] This move loses the game for Black.} (44... Kh7 $16) 45. Kxf5 {[%emt 0:00:00] White mates.} Rxf2+ {[%emt 0:00:15]} 46. Kxe4 {[%emt 0:00:00]} Ra2 {[%emt 0:00:14]} 47. Kf4 {[%emt 0:00:00]} Ra4+ {[%emt 0:00:03]} 48. e4 {[%emt 0:00:00][%cal Be3e4,Be4e5][%mdl 32]} Kh7 {[%emt 0:00:09]} 49. Kg3 {[%emt 0:00:00]} Kg7 {[%emt 0:00:15]} 50. e5 {[%emt 0:00:00] Weighted Error Value: White=0.04 (flawless) /Black=0.19 (very precise)} 1-0

[Event "13th Chennai Open 2022"]
[Site "Chennai"]
[Date "2022.06.20"]
[Round "2.15"]
[White "Badrinarayanan N"]
[Black "Gusain, Himal"]
[Result "0-1"]
[ECO "A21"]
[WhiteElo "1574"]
[BlackElo "2396"]
[Annotator "TA"]
[PlyCount "92"]
[EventDate "2022.06.19"]
[EventType "swiss"]
[EventCountry "IND"]
[SourceTitle "playchess.com"]
[Source "ChessBase"]
[SourceQuality "1"]
[TimeControl "5400+30"]

{[%evp 9,91,-27,-31,-28,-31,-43,-34,-89,-68,-71,-43,-78,-77,-68,-62,-64,-65,-65,-56,-146,-146,-154,-149,-149,-155,-157,-166,-166,-165,-155,-155,-176,-183,-202,-166,-199,-192,-335,-325,-337,-284,-411,-412,-412,-412,-406,-403,-411,-393,-462,-445,-658,-652,-714,-718,-705,-697,-883,-858,-867,-866,-836,-829,-782,-486,-697,-696,-832,-806,-6031,-1395,-2808,-908,-29980,-29981,-29982,-29983,-29991,-29990,-29995,-29996,-29996,-29997,-29999]} 1. g3 {[%emt 0:00:02]} e5 {[%emt 0:01:39]} 2. Bg2 {[%emt 0:00:05]} f5 {[%emt 0:00:17]} 3. c4 {[%emt 0:00:11]} Nf6 {[%emt 0:00:46]} 4. Nc3 {[%emt 0:00:09]} Bb4 {[%emt 0:00:11]} 5. e3 {[%emt 0:00:06]} Bxc3 {[%emt 0:00:08]} 6. bxc3 {[%emt 0:00:07] A21: English Opening: 1...e5 2 Nc3.} d6 {[%emt 0:00:22]} 7. d4 {[%emt 0:00:30] [#]} c5 $146 {[%emt 0:00:18]} ({Predecessor:} 7... Qe7 8. Ba3 c5 9. Ne2 O-O 10. Rb1 Nc6 11. O-O Nd8 12. Qc2 Be6 13. d5 Bd7 {0-1 (26) Lepigoche,C (1879)-Blum,N (2180) La Roche sur Yon 2008}) 8. Ne2 {[%emt 0:05:31]} (8. Nf3 $15) 8... Qc7 {[%emt 0:00:43]} 9. O-O {[%emt 0:01:13]} Nc6 {[%emt 0:00:34]} 10. Ba3 {[%emt 0:04:32]} b6 {[%emt 0:00:09]} 11. Nc1 {[%emt 0:11:50]} O-O {[%emt 0:03:06]} 12. Nb3 {[%emt 0:02:29]} Ba6 {[%emt 0:02:39]} 13. Nd2 $1 {[%emt 0:00:45]} Rad8 {[%emt 0:03:27][%cal Ba8d8,Bd8d7,Bd7e7][%mdl 32]} 14. Rb1 {[%emt 0:06:59] White is now going downhill.} ({Better is} 14. Qf3 $15 Na5 15. Qxf5) 14... Na5 $17 {[%emt 0:00:35]} ({Inferior is} 14... exd4 15. cxd4 cxd4 16. exd4 $11) 15. Qa4 {[%emt 0:02:14]} Qd7 {[%emt 0:00:33]} 16. Qxd7 {[%emt 0:04:01]} Rxd7 {[%emt 0:00:04]} 17. Rfd1 {[%emt 0:02:41]} Nxc4 {[%emt 0:00:11]} ({Stronger than} 17... Bxc4 18. Nxc4 Nxc4 19. Bc1 $17) 18. Nxc4 {[%emt 0:00:46]} Bxc4 {[%emt 0:00:05]} 19. Rb2 {[%emt 0:01:00]} e4 {[%emt 0:02:01]} 20. Rbd2 {[%emt 0:00:58]} Bd3 {[%emt 0:00:46]} 21. f3 {[%emt 0:02:32]} Re7 {[%emt 0:02:23]} 22. f4 {[%emt 0:05:19]} Rd8 {[%emt 0:03:00]} 23. c4 {[%emt 0:02:16]} (23. Rc1 $142) 23... cxd4 $19 {[%emt 1:18:03]} ({Worse is} 23... Bxc4 24. dxc5 bxc5 25. Bxc5 $15) 24. exd4 {[%emt 0:02:32]} Bxc4 {[%emt 0:00:00]} 25. Bf1 {[%emt 0:06:30]} (25. Rc1 $142 b5 26. Bb4) 25... Bxf1 {[%emt 0:00:00]} 26. Kxf1 {[%emt 0:00:41]} Rc7 {[%emt 0:00:00]} 27. d5 {[%emt 0:00:59]} Kf7 {[%emt 0:00:00]} 28. Ke2 {[%emt 0:03:16]} Ke7 {[%emt 0:00:00]} 29. Rg1 {[%emt 0:01:10]} Rdc8 {[%emt 0:00:00] White must now prevent ...Ng4.} 30. h3 {[%emt 0:00:15]} (30. Rg2 $142) 30... Rc2 {[%emt 0:00:00]} 31. g4 {[%emt 0:00:54]} fxg4 {[%emt 0:00:00]} 32. hxg4 {[%emt 0:00:06]} Nxd5 {[%emt 0:00:00]} 33. f5 {[%emt 0:01:16]} e3 {[%emt 0:00:00]} 34. Rxc2 {[%emt 0:01:04]} Rxc2+ {[%emt 0:00:00][%mdl 4096] Endgame KRB-KRN} 35. Kf3 {[%emt 0:00:19]} Rxa2 {[%emt 0:00:00]} 36. Bc1 {[%emt 0:00:17]} Ra4 {[%emt 0:00:00]} 37. Bb2 {[%emt 0:01:32]} (37. Rd1 $142 Rf4+ 38. Kg3) 37... g6 {[%emt 0:00:00][%cal Bg7g6,Bg6f5][%mdl 32]} 38. Rh1 {[%emt 0:02:41]} gxf5 {[%emt 0:00:00]} 39. Rh4 {[%emt 0:30:12]} h6 40. Rxh6 {[%emt 0:00:00]} Kd7 {[%emt 0:00:00] [#] ( -> ...Rf4+)} 41. g5 {[%emt 0:00:00]} Rf4+ {[%emt 0:00:00] Black mates.} 42. Ke2 {[%emt 0:00:00]} Rf2+ {[%emt 0:00:00]} 43. Ke1 {[%emt 0:00:00]} Rxb2 {[%emt 0:00:00]} 44. g6 {[%emt 0:00:00]} Nf4 {[%emt 0:00:00][%cal Rb2b1]} 45. Rh7+ {[%emt 0:00:00]} Kc6 {[%emt 0:00:00][%cal Rb2b1]} 46. Re7 {[%emt 0:00:00]} Rb1# {[%emt 0:00:00] Weighted Error Value: White=0.81/Black=0.34} 0-1

[Event "13th Chennai Open 2022"]
[Site "Chennai"]
[Date "2022.06.20"]
[Round "2.16"]
[White "Girinath, P.D.S."]
[Black "Sujay B M"]
[Result "1-0"]
[ECO "B06"]
[WhiteElo "2361"]
[BlackElo "1603"]
[Annotator "TA"]
[PlyCount "68"]
[EventDate "2022.06.19"]
[EventType "swiss"]
[EventCountry "IND"]
[SourceTitle "playchess.com"]
[Source "ChessBase"]
[SourceQuality "1"]
[TimeControl "5400+30"]

{[%evp 12,68,0,0,235,0,8,-15,-15,-16,-16,-12,-9,-47,-41,-58,-50,-69,-16,-56,-46,-50,-11,-54,-35,-79,-65,-79,-69,-81,-63,-142,-116,-88,-29,-80,-77,-79,0,0,92,85,94,79,89,86,77,66,87,90,95,84,60,66,76,53,84,76,88]} 1. e4 {[%emt 0:00:05]} c5 {[%emt 0:00:44]} 2. Nf3 {[%emt 0:00:15]} g6 {[%emt 0:00:27]} 3. c3 {[%emt 0:01:22]} d5 {[%emt 0:00:55]} 4. exd5 {[%emt 0:02:15]} Qxd5 {[%emt 0:00:17]} 5. d4 {[%emt 0:00:30]} Bg7 {[%emt 0:00:49]} 6. Be3 {[%emt 0:02:23]} cxd4 {[%emt 0:05:51]} 7. cxd4 {[%emt 0:00:25]} Nh6 $2 {[%emt 0:02:47] [#] B06: Modern Defence.} (7... Qa5+ $11 8. Nc3 Nh6) 8. Nc3 $2 {[%emt 0:00:53]} ({Only move:} 8. Qc1 $1 $18 {[%cal Rc1c8]} Bg4 9. Bxh6 Bxh6 10. Qxh6 Bxf3 11. gxf3) 8... Qa5 $11 {[%emt 0:01:26]} 9. Qd2 {[%emt 0:19:22]} Nf5 {[%emt 0:18:35] The position is equal.} 10. Nb5 {[%emt 0:07:31]} Qxd2+ {[%emt 0:06:41]} 11. Bxd2 {[%emt 0:02:11] Hoping for Nc7+.} Na6 {[%emt 0:00:38] [#] Inhibits Nc7+.} 12. g4 $146 {[%emt 0:41:25]} ({Predecessor:} 12. Bd3 O-O 13. O-O Bd7 14. Rfe1 Bc6 15. Bc3 Rfd8 16. Rad1 e6 17. Ne5 Bd5 18. Bb1 {0-1 (37) Ker,A (2337)-Kulaots,K (2557) Turin 2006}) 12... Nd6 {[%emt 0:12:36]} 13. Nxd6+ {[%emt 0:01:55]} exd6 {[%emt 0:05:00]} 14. h3 {[%emt 0:00:07]} O-O {[%emt 0:06:13]} (14... h5 $15 15. gxh5 (15. Bb5+ Kf8 $15) 15... Rxh5) 15. Bg2 {[%emt 0:02:19]} Re8+ {[%emt 0:03:40]} 16. Be3 {[%emt 0:02:41]} Bd7 {[%emt 0:11:17]} (16... Nb4 {looks sharper.} 17. Kd2 Bd7 18. Ne1 Rac8) 17. Kd2 {[%emt 0:08:06]} Bc6 {[%emt 0:05:57]} (17... Nb4 {is interesting.} 18. Ne1 Rac8 19. Bxb7 Rc7) 18. Rhe1 {[%emt 0:00:12]} Nc7 {[%emt 0:02:44]} 19. Rac1 {[%emt 0:04:34]} Ne6 {[%emt 0:04:47]} 20. Kd3 {[%emt 0:00:28]} Rac8 {[%emt 0:02:35]} 21. Nh4 {[%emt 0:01:15]} ({White should play} 21. Bh1 $15) 21... Bb5+ {[%emt 0:06:27]} 22. Kd2 {[%emt 0:00:02]} Bf6 {[%emt 0:00:32]} ({Much worse is} 22... Bxd4 $6 23. Rxc8 Rxc8 24. Bxb7 Bxe3+ 25. Rxe3 $15) (22... Nxd4 $17 {...Nc6 is the strong threat.} 23. Bxb7 Rb8) 23. Nf3 {[%emt 0:01:09]} (23. Rxc8 $11 Rxc8 24. Nf3) 23... Bc6 $17 {[%emt 0:00:19]} 24. Bh1 {[%emt 0:00:09][%cal Bg2h1,Bh1f3,Bf3b7][%mdl 32]} Bxf3 {[%emt 0:00:41]} ({Black should try} 24... a5 $17) 25. Bxf3 $11 {[%emt 0:00:06]} Bxd4 {[%emt 0:00:29]} (25... Nxd4 $11 {remains equal.} 26. Bxb7 (26. Bxd4 Bxd4 27. Rxc8 Rxc8 $11) 26... Rb8) 26. Bxd4 $16 {[%emt 0:01:14]} ({Much weaker is} 26. Bxb7 Bxe3+ 27. Rxe3 Rb8 $15) 26... Nxd4 {[%emt 0:00:01]} 27. Bxb7 {[%emt 0:00:11]} Rb8 {[%emt 0:00:59] [#] Strongly threatening ...Rxe1.} 28. Rxe8+ {[%emt 0:00:09]} Rxe8 {[%emt 0:00:01][%mdl 4096] Endgame KRB-KRN} 29. Rc8 {[%emt 0:00:57]} Nf3+ {[%emt 0:00:58]} 30. Kd3 {[%emt 0:00:22]} Rxc8 {[%emt 0:00:29]} 31. Bxc8 {[%emt 0:00:07]} Ng1 {[%emt 0:00:20]} 32. h4 {[%emt 0:00:50] Threatens to win with Ke3.} Nf3 {[%emt 0:00:40]} 33. h5 {[%emt 0:00:15]} Kg7 {[%emt 0:00:28]} 34. hxg6 {[%emt 0:00:22]} fxg6 {[%emt 0:00:35] Weighted Error Value: White=0.27 (precise) /Black=0.40} 1-0